fUST/lending_fUST_20260117
["ID","MTS","AMOUNT","RATE_DAILY","PERIOD"]
[402229432,1768612299426,-500.0,0.00023287,3]
[402229433,1768612299771,-500.0,0.00023287,2]
[402229434,1768612299788,-895.04,0.00023287,3]
[402229435,1768612299798,-500.0,0.00023288,5]
[402229436,1768612299808,-166.0,0.00023319,120]
[402229437,1768612299817,-250.0,0.00023319,120]
[402229438,1768612299827,-166.0,0.00023319,120]
[402229439,1768612299837,-210.48,0.000234,7]
[402229440,1768612299846,-190.77,0.000234,7]
[402229441,1768612299855,-1228.0,0.00023414,120]
[402229442,1768612299864,-777.50580187,0.00023443,27]
[402229443,1768612299874,-614.0,0.00023473,120]
[402229444,1768612299883,-368.0,0.00023473,120]
[402229445,1768612299892,-221.0,0.00023473,120]
[402229446,1768612299901,-1021.0,0.00023479,120]
[402229447,1768612299911,-612.0,0.00023481,120]
[402229448,1768612299920,-367.0,0.00023482,120]
[402229449,1768612299929,-221.0,0.00023482,120]
[402229450,1768612299938,-656.0,0.00023507,120]
[402229451,1768612299947,-394.0,0.00023507,120]
[402229452,1768612299956,-236.0,0.00023507,120]
[402229453,1768612299966,-367.0,0.00023537,120]
[402229454,1768612299975,-220.47469234,0.00023538,120]
[402229455,1768612299985,-196.44267903,0.00023538,120]
[402229456,1768612299994,-172.77094828,0.00023538,110]
[402229457,1768612300003,-180.79908271,0.00023538,120]
[402229458,1768612300012,-220.0,0.0002354,120]
[402229459,1768612300022,-165.0,0.00023541,120]
[402229460,1768612300031,-166.0,0.00023542,120]
[402229461,1768612300042,-500.0,0.00023561,3]
[402229462,1768612300052,-500.0,0.00023561,3]
[402229463,1768612300062,-500.0,0.00023561,3]
[402229464,1768612300071,-500.0,0.00023561,3]
[402229465,1768612300081,-500.0,0.00023561,3]
[402229466,1768612300091,-1030.1027638,0.00023561,3]
[402229467,1768612300100,-500.0,0.00023561,3]
[402229468,1768612300110,-500.0,0.00023561,3]
[402229469,1768612300119,-500.0,0.00023561,3]
[402229470,1768612300129,-500.0,0.00023561,3]
[402229471,1768612300138,-500.0,0.00023561,3]
[402229472,1768612300147,-500.0,0.00023561,3]
[402229473,1768612300156,-500.0,0.00023561,3]
[402229474,1768612300166,-500.0,0.00023561,3]
[402229475,1768612300175,-500.0,0.00023561,3]
[402229476,1768612300185,-450.32759342,0.00023561,3]
[402229477,1768612300195,-500.0,0.00023561,3]
[402229478,1768612300205,-1606.72,0.00023561,3]
[402229479,1768612300214,-1469.77,0.00023561,3]
[402229480,1768612300223,-500.0,0.00023561,3]
[402229481,1768612300233,-627.89,0.00023561,3]
[402229482,1768612300242,-543.89,0.00023561,3]
[402229483,1768612300251,-500.0,0.00023561,3]
[402229484,1768612300262,-500.0,0.00023561,3]
[402229485,1768612300272,-500.0,0.00023561,3]
[402229486,1768612300282,-500.0,0.00023561,3]
[402229487,1768612300293,-643.23,0.00023561,3]
[402229488,1768612300303,-500.0,0.00023561,3]
[402229489,1768612300312,-500.0,0.00023561,3]
[402229490,1768612300322,-972.04,0.00023561,3]
[402229491,1768612300333,-500.0,0.00023561,3]
[402229492,1768612300342,-500.0,0.00023561,3]
[402229493,1768612300351,-158.848643,0.00023561,3]
[402229494,1768612300362,-1177.42,0.00023561,3]
[402229495,1768612300371,-500.0,0.00023561,3]
[402229496,1768612300382,-1000.0,0.00023561,2]
[402229497,1768612300393,-500.0,0.00023561,3]
[402229498,1768612300405,-1019.12,0.00023561,3]
[402229499,1768612300414,-500.0,0.00023561,3]
[402229500,1768612300424,-884.65,0.00023561,3]
[402229501,1768612300434,-675.11,0.00023561,3]
[402229502,1768612300443,-500.0,0.00023561,3]
[402229503,1768612300452,-982.13,0.00023561,3]
[402229504,1768612300461,-417.31498703,0.00023561,3]
[402229505,1768612300470,-500.0,0.00023561,3]
[402229506,1768612300479,-500.0,0.00023561,3]
[402229507,1768612300487,-500.0,0.00023561,3]
[402229508,1768612300497,-918.56,0.00023561,3]
[402229509,1768612300506,-500.0,0.00023561,3]
[402229510,1768612300516,-500.0,0.00023561,3]
[402229511,1768612300527,-500.0,0.00023561,3]
[402229512,1768612300537,-500.0,0.00023561,3]
[402229513,1768612300547,-500.0,0.00023561,3]
[402229514,1768612300558,-823.41,0.00023561,3]
[402229515,1768612300569,-500.0,0.00023561,3]
[402229516,1768612300579,-745.47,0.00023561,3]
[402229517,1768612300590,-500.0,0.00023561,3]
[402229518,1768612300601,-559.13,0.00023561,3]
[402229519,1768612300613,-500.0,0.00023561,3]
[402229520,1768612300623,-519.2,0.00023561,3]
[402229521,1768612300634,-500.0,0.00023561,3]
[402229522,1768612300643,-500.0,0.00023561,3]
[402229523,1768612300653,-1010.64,0.00023561,3]
[402229524,1768612300663,-863.28,0.00023561,3]
[402229525,1768612300673,-500.0,0.00023561,3]
[402229526,1768612300683,-1065.68,0.00023561,3]
[402229527,1768612300692,-841.85,0.00023561,3]
[402229528,1768612300701,-500.0,0.00023561,3]
[402229529,1768612300710,-1718.24,0.00023561,3]
[402229530,1768612300720,-500.00248733,0.00023561,3]
[402229531,1768612300733,-500.0,0.00023561,3]
[402229532,1768612300743,-500.0,0.00023561,3]
[402229533,1768612300751,-500.0,0.00023561,3]
[402229534,1768612300762,-664.42,0.00023561,3]
[402229535,1768612300771,-836.47,0.00023561,3]
[402229536,1768612300781,-452.05045477,0.00023561,3]
[402229537,1768612300790,-500.0,0.00023561,3]
[402229538,1768612300800,-500.0,0.00023561,3]
[402229539,1768612300809,-568.73,0.00023561,3]
[402229540,1768612300819,-888.54,0.00023561,3]
[402229541,1768612300828,-1228.67,0.00023561,3]
[402229542,1768612300838,-938.01,0.00023561,3]
[402229543,1768612300847,-1143.87,0.00023561,3]
[402229544,1768612300856,-500.0,0.00023561,3]
[402229545,1768612300866,-500.0,0.00023561,3]
[402229546,1768612300875,-685.57,0.00023561,3]
[402229547,1768612300885,-500.0,0.00023561,3]
[402229548,1768612300894,-500.0,0.00023561,3]
[402229549,1768612300903,-500.0,0.00023561,3]
[402229550,1768612300915,-500.0,0.00023561,3]
[402229551,1768612300924,-500.0,0.00023561,3]
[402229552,1768612300934,-500.0,0.00023561,3]
[402229553,1768612300943,-1194.53,0.00023561,3]
[402229554,1768612300952,-1487.38,0.00023561,3]
[402229555,1768612300961,-500.0,0.00023561,3]
[402229556,1768612300970,-536.48,0.00023561,3]
[402229557,1768612300980,-500.0,0.00023561,3]
[402229558,1768612300989,-455.9605957,0.00023561,2]
[402229559,1768612300998,-1698.69,0.00023561,3]
[402229560,1768612301008,-500.0,0.00023561,3]
[402229561,1768612301017,-500.0,0.00023561,3]
[402229562,1768612301026,-1167.35,0.00023561,3]
[402229563,1768612301036,-628.62,0.00023561,3]
[402229564,1768612301045,-1160.25,0.00023561,3]
[402229565,1768612301054,-500.0,0.00023561,3]
[402229566,1768612301064,-2025.42,0.00023561,3]
[402229567,1768612301073,-500.0,0.00023561,3]
[402229568,1768612301082,-679.33,0.00023561,3]
[402229569,1768612301091,-528.39829995,0.00023561,3]
[402229570,1768612301101,-530.21,0.00023561,3]
[402229571,1768612301110,-500.0,0.00023561,3]
[402229572,1768612301119,-500.2,0.00023561,3]
[402229573,1768612301128,-569.58,0.00023561,3]
[402229574,1768612301137,-529.72443185,0.00023561,3]
[402229575,1768612301147,-552.12,0.00023561,3]
[402229576,1768612301156,-500.0,0.00023561,3]
[402229577,1768612301166,-500.0,0.00023561,3]
[402229578,1768612301176,-500.0,0.00023561,3]
[402229579,1768612301186,-500.0,0.00023561,3]
[402229580,1768612301195,-1306.68,0.00023561,3]
[402229581,1768612301204,-500.0,0.00023561,3]
[402229582,1768612301214,-624.94,0.00023561,3]
[402229583,1768612301223,-500.0,0.00023561,3]
[402229584,1768612301233,-613.28,0.00023561,3]
[402229585,1768612301242,-1429.76,0.00023561,3]
[402229586,1768612301251,-500.0,0.00023561,3]
[402229587,1768612301260,-500.0,0.00023561,3]
[402229588,1768612301270,-699.17,0.00023561,3]
[402229589,1768612301279,-913.53,0.00023561,3]
[402229590,1768612301287,-500.0,0.00023561,3]
[402229591,1768612301296,-500.0,0.00023561,3]
[402229592,1768612301306,-1931.0,0.00023561,3]
[402229593,1768612301314,-1057.67,0.00023561,3]
[402229594,1768612301324,-470.99036896,0.00023561,3]
[402229595,1768612301333,-500.0,0.00023561,3]
[402229596,1768612301342,-1336.63,0.00023561,3]
[402229597,1768612301352,-502.89,0.00023561,3]
[402229598,1768612301361,-1925.58,0.00023561,3]
[402229599,1768612301375,-500.0,0.00023561,3]
[402229600,1768612301384,-500.0,0.00023561,3]
[402229601,1768612301393,-359.33123915,0.00023561,3]
[402229602,1768612301403,-1041.15,0.00023561,3]
[402229603,1768612301412,-500.0,0.00023561,3]
[402229604,1768612301422,-500.0,0.00023561,3]
[402229605,1768612301433,-500.0,0.00023561,3]
[402229606,1768612301442,-500.0,0.00023561,3]
[402229607,1768612301451,-500.0,0.00023561,3]
[402229608,1768612301460,-500.0,0.00023561,3]
[402229609,1768612301469,-500.0,0.00023561,3]
[402229610,1768612301479,-1088.64,0.00023561,3]
[402229611,1768612301487,-500.0,0.00023561,3]
[402229612,1768612301500,-2379.42,0.00023561,3]
[402229613,1768612301509,-500.0,0.00023561,3]
[402229614,1768612301518,-528.71,0.00023561,3]
[402229615,1768612301528,-500.0,0.00023561,3]
[402229616,1768612301539,-577.81,0.00023561,3]
[402229617,1768612301551,-1069.82,0.00023561,3]
[402229618,1768612301561,-500.0,0.00023561,3]
[402229619,1768612301570,-1058.35,0.00023561,3]
[402229620,1768612301579,-1720.28,0.00023561,3]
[402229621,1768612301589,-805.67,0.00023561,3]
[402229622,1768612301599,-1092.57,0.00023561,3]
[402229623,1768612301610,-500.0,0.00023561,3]
[402229624,1768612301620,-500.0,0.00023561,3]
[402229625,1768612301631,-500.0,0.00023561,3]
[402229626,1768612301644,-500.0,0.00023561,3]
[402229627,1768612301654,-1108.94,0.00023561,3]
[402229628,1768612301663,-500.0,0.00023561,3]
[402229629,1768612301672,-227.40060526,0.00023561,3]
[402229630,1768612301681,-500.0,0.00023561,3]
[402229631,1768612301691,-500.0,0.00023561,3]
[402229632,1768612301700,-500.0,0.00023561,3]
[402229633,1768612301709,-673.97,0.00023561,3]
[402229634,1768612301719,-607.14,0.00023561,3]
[402229635,1768612301731,-612.67,0.00023561,3]
[402229636,1768612301742,-500.0,0.00023561,3]
[402229637,1768612301751,-500.0,0.00023561,3]
[402229638,1768612301760,-1798.83,0.00023561,3]
[402229639,1768612301770,-559.87,0.00023561,3]
[402229640,1768612301779,-500.0,0.00023561,3]
[402229641,1768612301788,-1066.43,0.00023561,3]
[402229642,1768612301797,-500.0,0.00023561,3]
[402229643,1768612301807,-844.99,0.00023561,3]
[402229644,1768612301816,-500.0,0.00023561,3]
[402229645,1768612301827,-552.5,0.00023561,3]
[402229646,1768612301836,-850.34,0.00023561,3]
[402229647,1768612301846,-1503.99,0.00023561,3]
[402229648,1768612301856,-500.0,0.00023561,3]
[402229649,1768612301865,-500.0,0.00023561,3]
[402229650,1768612301875,-1047.78,0.00023561,3]
[402229651,1768612301886,-2028.81,0.00023561,3]
[402229652,1768612301895,-984.57,0.00023561,3]
[402229653,1768612301904,-500.0,0.00023561,3]
[402229654,1768612301913,-615.63,0.00023561,3]
[402229655,1768612301923,-500.0,0.00023561,3]
[402229656,1768612301932,-500.0,0.00023561,3]
[402229657,1768612301941,-500.0,0.00023561,3]
[402229658,1768612301951,-500.0,0.00023561,3]
[402229659,1768612301960,-1048.01,0.00023561,3]
[402229660,1768612301969,-861.03,0.00023561,3]
[402229661,1768612301979,-630.31,0.00023561,3]
[402229662,1768612301988,-2325.91,0.00023561,3]
[402229663,1768612301998,-666.35,0.00023561,3]
[402229664,1768612302008,-1000.0,0.00023561,2]
[402229665,1768612302019,-696.01,0.00023561,3]
[402229666,1768612302028,-724.03,0.00023561,3]
[402229667,1768612302037,-500.0,0.00023561,3]
[402229668,1768612302047,-845.49,0.00023561,3]
[402229669,1768612302057,-500.0,0.00023561,3]
[402229670,1768612302067,-1122.88,0.00023561,3]
[402229671,1768612302077,-500.0,0.00023561,3]
[402229672,1768612302087,-500.0,0.00023561,3]
[402229673,1768612302096,-779.61,0.00023561,3]
[402229674,1768612302106,-500.0,0.00023561,3]
[402229675,1768612302116,-500.0,0.00023561,3]
[402229676,1768612302125,-500.0,0.00023561,3]
[402229677,1768612302135,-596.29,0.00023561,3]
[402229678,1768612302145,-1501.63,0.00023561,3]
[402229679,1768612302154,-2167.4,0.00023561,3]
[402229680,1768612302163,-816.59,0.00023561,2]
[402229681,1768612302172,-687.65,0.00023561,3]
[402229682,1768612302181,-1854.01,0.00023561,3]
[402229683,1768612302190,-555.87,0.00023561,3]
[402229684,1768612302200,-1200.0,0.00023561,3]
[402229685,1768612302209,-500.0,0.00023561,3]
[402229686,1768612302218,-500.0,0.00023561,3]
[402229687,1768612302227,-500.0,0.00023561,3]
[402229688,1768612302237,-500.0,0.00023561,3]
[402229689,1768612302246,-772.71,0.00023561,3]
[402229690,1768612302256,-500.0,0.00023561,3]
[402229691,1768612302266,-983.25,0.00023561,3]
[402229692,1768612302275,-965.59,0.00023561,3]
[402229693,1768612302286,-500.0,0.00023561,3]
[402229694,1768612302296,-500.0,0.00023561,3]
[402229695,1768612302307,-950.31,0.00023561,3]
[402229696,1768612302316,-789.67,0.00023561,3]
[402229697,1768612302327,-500.0,0.00023561,3]
[402229698,1768612302337,-1345.73,0.00023561,3]
[402229699,1768612302347,-1202.15,0.00023561,3]
[402229700,1768612302358,-500.0,0.00023561,3]
[402229701,1768612302368,-500.0,0.00023561,3]
[402229702,1768612302378,-500.0,0.00023561,3]
[402229703,1768612302387,-500.0,0.00023561,3]
[402229704,1768612302397,-500.0,0.00023561,3]
[402229705,1768612302406,-1060.6,0.00023561,3]
[402229706,1768612302415,-500.0,0.00023561,3]
[402229707,1768612302424,-500.0,0.00023561,3]
[402229708,1768612302433,-500.0,0.00023561,3]
[402229709,1768612302442,-1057.71,0.00023561,3]
[402229710,1768612302452,-525.93,0.00023561,3]
[402229711,1768612302462,-500.0,0.00023561,3]
[402229712,1768612302471,-500.0,0.00023561,3]
[402229713,1768612302480,-500.0,0.00023561,3]
[402229714,1768612302489,-1264.0,0.00023561,3]
[402229715,1768612302498,-554.11882532,0.00023561,3]
[402229716,1768612302507,-887.1,0.00023561,3]
[402229717,1768612302516,-1572.38,0.00023561,3]
[402229718,1768612302527,-861.54,0.00023561,3]
[402229719,1768612302537,-500.0,0.00023561,3]
[402229720,1768612302546,-500.0,0.00023561,3]
[402229721,1768612302556,-849.14,0.00023561,3]
[402229722,1768612302565,-819.63,0.00023561,3]
[402229723,1768612302575,-500.0,0.00023561,3]
[402229724,1768612302583,-636.06,0.00023561,3]
[402229725,1768612302593,-500.0,0.00023561,3]
[402229726,1768612302603,-553.81,0.00023561,3]
[402229727,1768612302612,-1263.43,0.00023561,3]
[402229728,1768612302622,-1640.86,0.00023561,3]
[402229729,1768612302631,-994.98,0.00023561,3]
[402229730,1768612302640,-1583.3,0.00023561,3]
[402229731,1768612302649,-752.46,0.00023561,3]
[402229732,1768612302659,-500.0,0.00023561,3]
[402229733,1768612302669,-500.0,0.00023561,3]
[402229734,1768612302680,-500.0,0.00023561,3]
[402229735,1768612302690,-1611.33,0.00023561,3]
[402229736,1768612302701,-500.0,0.00023561,3]
[402229737,1768612302710,-1663.66,0.00023561,3]
[402229738,1768612302721,-661.66,0.00023561,3]
[402229739,1768612302732,-500.0,0.00023561,3]
[402229740,1768612302741,-1291.69,0.00023561,3]
[402229741,1768612302751,-742.29,0.00023561,3]
[402229742,1768612302760,-500.0,0.00023561,3]
[402229743,1768612302770,-500.0,0.00023561,3]
[402229744,1768612302779,-675.18,0.00023561,3]
[402229745,1768612302788,-500.0,0.00023561,3]
[402229746,1768612302797,-976.58,0.00023561,3]
[402229747,1768612302807,-500.0,0.00023561,3]
[402229748,1768612302817,-607.94,0.00023561,3]
[402229749,1768612302827,-500.0,0.00023561,3]
[402229750,1768612302837,-558.96,0.00023561,3]
[402229751,1768612302846,-556.64,0.00023561,3]
[402229752,1768612302855,-500.0,0.00023561,3]
[402229753,1768612302864,-500.0,0.00023561,3]
[402229754,1768612302874,-513.79,0.00023561,3]
[402229755,1768612302884,-500.0,0.00023561,3]
[402229756,1768612302894,-562.97118784,0.00023561,3]
[402229757,1768612302903,-500.0,0.00023561,3]
[402229758,1768612302913,-500.0,0.00023561,3]
[402229759,1768612302922,-500.0,0.00023561,3]
[402229760,1768612302933,-525.64,0.00023561,3]
[402229761,1768612302943,-1585.89,0.00023561,3]
[402229762,1768612303143,-564.3,0.00023561,3]
[402229763,1768612303163,-768.23,0.00023561,3]
[402229764,1768612303173,-431.5341614,0.00023561,3]
[402229765,1768612303183,-500.0,0.00023561,3]
[402229766,1768612303193,-1622.98,0.00023561,3]
[402229767,1768612303202,-500.0,0.00023561,3]
[402229768,1768612303212,-1235.52,0.00023561,3]
[402229769,1768612303223,-500.0,0.00023561,3]
[402229770,1768612303232,-645.71,0.00023561,3]
[402229771,1768612303241,-500.0,0.00023561,3]
[402229772,1768612303250,-500.0,0.00023561,3]
[402229773,1768612303259,-510.89726288,0.00023561,3]
[402229774,1768612303268,-854.24,0.00023561,3]
[402229775,1768612303278,-500.0,0.00023561,3]
[402229776,1768612303288,-1159.08,0.00023561,3]
[402229777,1768612303298,-500.0,0.00023561,3]
[402229778,1768612303307,-1832.87,0.00023561,3]
[402229779,1768612303318,-500.0,0.00023561,3]
[402229780,1768612303327,-324.30749611,0.00023561,3]
[402229781,1768612303336,-1361.89,0.00023561,3]
[402229782,1768612303345,-1015.39,0.00023561,3]
[402229783,1768612303355,-1092.53,0.00023561,3]
[402229784,1768612303365,-500.0,0.00023561,3]
[402229785,1768612303375,-500.0,0.00023561,3]
[402229786,1768612303384,-500.0,0.00023561,3]
[402229787,1768612303394,-500.0,0.00023561,3]
[402229788,1768612303405,-500.0,0.00023561,3]
[402229789,1768612303415,-2080.52,0.00023561,3]
[402229790,1768612303424,-694.83,0.00023561,3]
[402229791,1768612303434,-631.18,0.00023561,3]
[402229792,1768612303445,-1568.63,0.00023561,3]
[402229793,1768612303455,-500.0,0.00023561,3]
[402229794,1768612303475,-500.0,0.00023561,3]
[402229795,1768612303486,-500.0,0.00023561,3]
[402229796,1768612303495,-1023.88,0.00023561,3]
[402229797,1768612303505,-627.95,0.00023561,3]
[402229798,1768612303515,-1025.72,0.00023561,3]
[402229799,1768612303524,-923.34,0.00023561,3]
[402229800,1768612303534,-500.0,0.00023561,3]
[402229801,1768612303545,-500.0,0.00023561,3]
[402229802,1768612303554,-546.51,0.00023561,3]
[402229803,1768612303564,-500.0,0.00023561,3]
[402229804,1768612303574,-500.0,0.00023561,3]
[402229805,1768612303584,-500.0,0.00023561,3]
[402229806,1768612303595,-1133.27,0.00023561,3]
[402229807,1768612303604,-526.63,0.00023561,3]
[402229808,1768612303614,-500.0,0.00023561,3]
[402229809,1768612303623,-616.88,0.00023561,3]
[402229810,1768612303634,-1350.15,0.00023561,3]
[402229811,1768612303645,-500.0,0.00023561,3]
[402229812,1768612303655,-546.07656353,0.00023561,3]
[402229813,1768612303666,-500.0,0.00023561,3]
[402229814,1768612303676,-503.95,0.00023561,3]
[402229815,1768612303687,-500.0,0.00023561,3]
[402229816,1768612303696,-500.0,0.00023561,3]
[402229817,1768612303712,-1118.18,0.00023561,3]
[402229818,1768612303724,-2041.61,0.00023561,3]
[402229819,1768612303737,-533.43,0.00023561,3]
[402229820,1768612303747,-500.0,0.00023561,3]
[402229821,1768612303757,-500.0,0.00023561,3]
[402229822,1768612303766,-500.0,0.00023561,3]
[402229823,1768612303776,-500.0,0.00023561,3]
[402229824,1768612303785,-518.54932216,0.00023561,3]
[402229825,1768612303794,-785.98,0.00023561,3]
[402229826,1768612303803,-500.0,0.00023561,3]
[402229827,1768612303813,-500.0,0.00023561,3]
[402229828,1768612303822,-1720.81,0.00023561,3]
[402229829,1768612303832,-502.37,0.00023561,3]
[402229830,1768612303841,-500.0,0.00023561,3]
[402229831,1768612303851,-817.82,0.00023561,3]
[402229832,1768612303861,-500.0,0.00023561,3]
[402229833,1768612303871,-153.18992183,0.00023561,3]
[402229834,1768612303880,-500.0,0.00023561,3]
[402229835,1768612303890,-500.0,0.00023561,3]
[402229836,1768612303900,-500.0,0.00023561,3]
[402229837,1768612303910,-845.07,0.00023561,3]
[402229838,1768612303920,-500.0,0.00023561,3]
[402229839,1768612303929,-500.0,0.00023561,3]
[402229840,1768612303938,-1219.03,0.00023561,3]
[402229841,1768612303948,-2478.08,0.00023561,3]
[402229842,1768612303957,-500.0,0.00023561,3]
[402229843,1768612303967,-2562.85,0.00023561,3]
[402229844,1768612303977,-782.08,0.00023561,3]
[402229845,1768612303987,-500.0,0.00023561,3]
[402229846,1768612303997,-1683.6,0.00023561,3]
[402229847,1768612304007,-500.0,0.00023561,3]
[402229848,1768612304017,-2019.88,0.00023561,3]
[402229849,1768612304027,-812.22,0.00023561,3]
[402229850,1768612304037,-1783.86,0.00023561,3]
[402229851,1768612304046,-2935.53,0.00023561,3]
[402229852,1768612304056,-500.0,0.00023561,3]
[402229853,1768612304065,-500.0,0.00023561,3]
[402229854,1768612304074,-618.35,0.00023561,3]
[402229855,1768612304084,-500.0,0.00023561,3]
[402229856,1768612304093,-500.0,0.00023561,3]
[402229857,1768612304102,-706.88,0.00023561,3]
[402229858,1768612304112,-500.0,0.00023561,3]
[402229859,1768612304121,-703.68,0.00023561,3]
[402229860,1768612304130,-500.0,0.00023561,3]
[402229861,1768612304139,-500.0,0.00023561,3]
[402229862,1768612304149,-500.0,0.00023561,3]
[402229863,1768612304159,-1730.4,0.00023561,3]
[402229864,1768612304168,-2229.1,0.00023561,3]
[402229865,1768612304177,-870.56,0.00023561,3]
[402229866,1768612304186,-1965.15,0.00023561,3]
[402229867,1768612304196,-500.0,0.00023561,3]
[402229868,1768612304206,-883.96,0.00023561,3]
[402229869,1768612304215,-500.0,0.00023561,3]
[402229870,1768612304225,-1230.17,0.00023561,3]
[402229871,1768612304234,-500.0,0.00023561,3]
[402229872,1768612304244,-500.0,0.00023561,3]
[402229873,1768612304254,-500.0,0.00023561,3]
[402229874,1768612304263,-500.0,0.00023561,3]
[402229875,1768612304272,-716.67,0.00023561,3]
[402229876,1768612304281,-1014.11,0.00023561,3]
[402229877,1768612304290,-1793.94,0.00023561,3]
[402229878,1768612304300,-1251.47,0.00023561,3]
[402229879,1768612304309,-500.0,0.00023561,3]
[402229880,1768612304319,-500.0,0.00023561,3]
[402229881,1768612304328,-1993.75,0.00023561,3]
[402229882,1768612304337,-502.12,0.00023561,3]
[402229883,1768612304347,-500.0,0.00023561,3]
[402229884,1768612304356,-500.0,0.00023561,3]
[402229885,1768612304365,-1188.4,0.00023561,3]
[402229886,1768612304375,-500.0,0.00023561,3]
[402229887,1768612304384,-1029.96,0.00023561,3]
[402229888,1768612304394,-1119.18,0.00023561,3]
[402229889,1768612304403,-512.27,0.00023561,3]
[402229890,1768612304413,-855.99,0.00023561,3]
[402229891,1768612304422,-1815.05,0.00023561,3]
[402229892,1768612304431,-534.52,0.00023561,3]
[402229893,1768612304440,-500.0,0.00023561,3]
[402229894,1768612304450,-535.55,0.00023561,3]
[402229895,1768612304459,-967.4,0.00023561,3]
[402229896,1768612304468,-500.0,0.00023561,3]
[402229897,1768612304478,-500.0,0.00023561,3]
[402229898,1768612304487,-1136.87,0.00023561,3]
[402229899,1768612304496,-525.76,0.00023561,3]
[402229900,1768612304506,-2084.88,0.00023561,3]
[402229901,1768612304515,-500.0,0.00023561,3]
[402229902,1768612304524,-1471.9,0.00023561,3]
[402229903,1768612304534,-500.0,0.00023561,3]
[402229904,1768612304543,-8798.3,0.00023561,3]
[402229905,1768612304552,-564.01,0.00023561,3]
[402229906,1768612304562,-500.0,0.00023561,3]
[402229907,1768612304571,-958.68,0.00023561,3]
[402229908,1768612304581,-1479.47,0.00023561,3]
[402229909,1768612304590,-500.0,0.00023561,3]
[402229910,1768612304599,-500.0,0.00023561,3]
[402229911,1768612304608,-787.07,0.00023561,3]
[402229912,1768612304617,-500.0,0.00023561,3]
[402229913,1768612304627,-976.75,0.00023561,3]
[402229914,1768612304636,-1453.5,0.00023561,3]
[402229915,1768612304645,-1386.93,0.00023561,3]
[402229916,1768612304654,-500.0,0.00023561,3]
[402229917,1768612304663,-1742.45,0.00023561,3]
[402229918,1768612304672,-500.0,0.00023561,3]
[402229919,1768612304681,-500.0,0.00023561,3]
[402229920,1768612304691,-500.0,0.00023561,3]
[402229921,1768612304700,-3952.31,0.00023561,3]
[402229922,1768612304710,-500.0,0.00023561,3]
[402229923,1768612304719,-614.82,0.00023561,3]
[402229924,1768612304728,-523.59,0.00023561,3]
[402229925,1768612304740,-500.0,0.00023561,3]
[402229926,1768612304750,-500.0,0.00023561,3]
[402229927,1768612304760,-1627.08,0.00023561,3]
[402229928,1768612304770,-500.0,0.00023561,3]
[402229929,1768612304779,-500.0,0.00023561,3]
[402229930,1768612304789,-500.0,0.00023561,3]
[402229931,1768612304798,-500.0,0.00023561,3]